bitfinex-derivatives/quotes_ETHF0:USTF0_20250824
["timestamp","ask_amount","ask_price","bid_price","bid_amount"]
[1756053801858,20.216,4831.8,4831.7,0.4685]
[1756053802058,20.215,4832.2,4831.1,0.5694]
[1756053802358,20.62899,4832.2,4831.6,0.41403]
[1756053802551,20.62899,4832.2,4831.2,0.2366]
[1756053802753,20.215,4832.2,4832.0,0.414]
[1756053802947,20.215,4832.2,4832.1,0.8013]
[1756053803358,0.41392,4833.1,4832.1,0.5694]
[1756053803659,20.204,4833.0,4832.2,0.2319]
[1756053803860,50.43291,4833.2,4831.9,0.8013]
[1756053804060,50.019,4833.2,4832.9,0.2319]
[1756053804260,50.019,4833.2,4833.0,0.2319]
[1756053804463,50.019,4833.2,4833.1,0.2319]
[1756053806360,0.0206,4834.4,4833.2,0.4139]
[1756053806665,0.41386,4833.7,4833.3,0.2319]
[1756053806861,20.16,4833.6,4833.4,0.2319]
[1756053807159,20.16,4833.6,4833.3,0.2366]
[1756053807461,20.16,4833.6,4833.5,0.2319]
[1756053808862,20.161,4833.6,4833.5,0.2319]
[1756053809062,20.161,4833.6,4833.5,1.3398]
[1756053809264,20.131,4833.6,4833.5,1.3398]
[1756053809565,1.03448,4834.5,4833.6,0.2319]
[1756053809764,0.001,4833.7,4833.6,0.2319]
[1756053809963,20.124,4833.7,4833.6,0.2319]
[1756053810659,20.124,4833.7,4833.6,0.4685]
[1756053810859,20.124,4833.7,4833.6,0.6257]
[1756053811456,20.124,4833.7,4833.6,0.7747]
[1756053811859,20.124,4833.7,4833.6,1.3398]
[1756053811860,20.12,4833.7,4833.6,1.3398]
[1756053812259,20.12,4833.7,4833.6,1.007]
[1756053812861,20.12,4833.7,4833.6,1.3398]
[1756053813467,20.097,4833.7,4833.6,1.3398]
[1756053813961,20.097,4833.7,4833.6,1.007]
[1756053814169,20.097,4833.7,4833.6,1.3398]
[1756053815971,20.096,4833.7,4833.6,1.3398]
[1756053816866,20.096,4833.7,4833.6,0.2319]
[1756053817068,20.096,4833.7,4832.8,0.41393]
[1756053817069,0.4139,4833.3,4832.8,0.41393]
[1756053817373,0.4139,4833.3,4833.0,0.223]
[1756053817569,0.41388,4833.5,4833.2,0.223]
[1756053817768,20.096,4833.7,4833.4,0.2243]
[1756053817962,20.096,4833.7,4833.0,0.3237]
[1756053817963,0.41387,4833.6,4833.5,0.223]
[1756053818569,0.41389,4833.3,4832.6,0.5931]
[1756053818774,0.41389,4833.3,4832.9,0.41392]
[1756053819073,0.4139,4833.2,4832.7,0.55964]
[1756053819270,0.41394,4832.8,4832.3,0.223]
[1756053819471,20.47195,4832.7,4832.3,0.41397]
[1756053819674,0.41396,4832.5,4832.4,0.223]
[1756053819875,0.41396,4832.6,4832.1,0.63829]
[1756053820065,20.058,4832.7,4831.8,0.41402]
[1756053820265,20.058,4832.7,4831.9,0.7375]
[1756053820465,0.41398,4832.3,4831.9,0.2243]
[1756053820678,0.41399,4832.2,4832.1,0.223]
[1756053821071,20.058,4832.7,4831.5,0.7128168]
[1756053821072,0.41402,4831.8,4831.5,0.6793168]
[1756053821267,1.05549,4832.6,4831.2,0.2243]
[1756053821577,0.0206,4832.4,4831.2,0.38810836]
[1756053821877,0.41405,4831.5,4831.4,0.3724]
[1756053822073,20.054,4831.5,4831.2,0.223]
[1756053822270,20.46805,4831.5,4830.9,0.4497]
[1756053822478,20.46805,4831.5,4830.9,0.5145]
[1756053822672,20.054,4831.5,4831.1,1.2855]
[1756053822872,20.054,4831.5,4831.2,0.4473]
[1756053823181,20.054,4831.5,4831.4,0.223]
[1756053824777,20.054,4831.5,4831.4,1.2855]
[1756053824980,29.808,4832.8,4831.5,0.3687]
[1756053824981,20.028,4832.0,4831.5,0.3687]
[1756053825174,20.028,4832.0,4831.3,0.5121]
[1756053825375,20.028,4832.0,4831.8,0.41402]
[1756053825576,20.028,4832.0,4831.9,0.223]
[1756053826576,29.8286,4832.8,4831.9,0.223]
[1756053826577,20.045,4832.1,4832.0,0.9285]
[1756053826775,20.045,4832.1,4832.0,0.9618]
[1756053826976,20.045,4832.1,4832.0,0.223]
[1756053827877,20.045,4832.1,4832.0,0.9618]
[1756053828079,20.036,4832.4,4832.3,0.3724]
[1756053828279,20.036,4832.4,4832.3,0.8197]
[1756053828777,20.036,4832.4,4832.3,0.9618]
[1756053829586,0.414,4832.1,4831.7,0.223]
[1756053829784,20.036,4832.4,4831.7,0.223]
[1756053829785,0.41401,4832.0,4831.7,0.223]
[1756053829988,0.41401,4832.0,4830.9,0.223]
[1756053829989,0.41409,4831.1,4830.9,0.223]
[1756053830380,20.011,4831.2,4830.9,0.223]
[1756053830581,0.41408,4831.1,4830.9,0.223]
[1756053830991,20.011,4831.2,4830.1,0.4473]
[1756053831181,0.4141,4830.9,4830.4,0.41414]
[1756053831384,0.41413,4830.6,4830.4,0.223]
[1756053831686,20.011,4831.2,4830.4,0.223]
[1756053831981,0.41411,4830.8,4830.5,0.41413]
[1756053832191,0.41412,4830.6,4830.5,0.223]
[1756053832379,0.41415,4830.4,4829.9,0.223]
[1756053832580,0.41415,4830.4,4830.1,0.223]
[1756053832779,0.41415,4830.4,4830.2,0.223]
[1756053833283,20.01,4830.5,4829.8,0.223]
[1756053833585,0.41416,4830.2,4829.6,0.4142]
[1756053833780,1.03508,4831.7,4830.1,0.4473]
[1756053833981,0.41421,4829.6,4829.5,0.223]
[1756053834586,0.41421,4829.7,4829.6,0.223]
[1756053834779,20.003,4830.0,4829.0,0.2243]
[1756053834981,20.003,4830.0,4829.1,0.223]
[1756053835175,0.4142,4829.7,4829.2,0.41424]
[1756053835380,0.4142,4829.7,4829.3,0.4473]
[1756053835584,0.41422,4829.6,4829.4,0.2243]
[1756053835786,0.41422,4829.6,4829.5,0.223]
[1756053836083,0.4142,4829.8,4829.6,0.223]
[1756053836283,0.4142,4829.8,4829.5,0.771]
[1756053836479,20.008,4830.2,4828.6,1.03573]
[1756053836680,20.008,4830.2,4829.9,0.223]
[1756053837081,20.008,4830.2,4829.9,0.63848]
[1756053837383,0.41417,4830.1,4829.8,0.41419]
[1756053837683,0.41417,4830.1,4829.9,0.223]
[1756053837984,20.008,4830.2,4829.9,0.41418]
[1756053838182,20.008,4830.2,4830.0,0.223]
[1756053838375,20.008,4830.2,4828.5,0.771]
[1756053838582,0.41418,4830.0,4828.9,0.771]
[1756053838882,0.41418,4830.0,4829.8,0.4473]
[1756053839086,0.41418,4830.0,4829.9,0.223]
[1756053839479,20.008,4830.2,4829.5,0.223]
[1756053839981,0.41418,4830.0,4829.6,0.4142]
[1756053840186,0.41417,4830.1,4829.9,0.37]
[1756053840388,0.41417,4830.1,4828.3,1.05649]
[1756053840389,0.41417,4830.1,4830.0,0.223]
[1756053840587,20.008,4830.2,4829.6,0.223]
[1756053840882,20.008,4830.2,4830.1,1.2855]
[1756053841488,29.815,4831.0,4830.6,0.78292]
[1756053841677,19.997,4831.2,4831.1,0.1421]
[1756053841881,0.41411,4830.9,4830.6,0.5121]
[1756053842186,19.997,4831.2,4830.1,0.2878]
[1756053842187,1.03521,4831.1,4830.1,0.2878]
[1756053842483,0.41413,4830.6,4830.2,0.223]
[1756053842688,0.41414,4830.5,4830.3,0.223]
[1756053842893,0.41416,4830.2,4830.1,0.223]
[1756053843493,0.41419,4829.9,4829.7,0.223]
[1756053844592,0.41414,4830.4,4830.1,0.771]
[1756053844797,0.41415,4830.3,4830.2,0.4473]
[1756053845191,19.993,4830.6,4830.5,1.2855]
[1756053846489,19.993,4830.6,4830.5,0.9618]
[1756053847697,19.993,4830.6,4830.5,0.223]
[1756053847894,19.993,4830.6,4830.0,0.2166]
[1756053847895,19.993,4830.6,4830.0,0.63077]
[1756053848197,0.41415,4830.4,4830.1,0.41416]
[1756053848398,0.41415,4830.4,4830.2,0.2333]
[1756053848798,0.41419,4829.9,4829.7,0.2166]
[1756053848997,0.41419,4829.9,4829.8,0.2333]
[1756053849194,0.4142,4829.7,4829.3,0.41423]
[1756053849399,0.4142,4829.7,4829.4,0.64752]
[1756053849696,0.41422,4829.5,4829.3,0.2333]
[1756053849892,0.41422,4829.5,4829.1,0.41425]
[1756053850192,0.41422,4829.5,4829.1,0.41424]
[1756053850398,0.41422,4829.5,4829.4,0.2333]
[1756053850786,0.41421,4829.7,4829.6,0.388]
[1756053850992,19.946,4830.2,4829.7,0.572]
[1756053851286,0.41419,4829.9,4829.8,0.6077]
[1756053851486,19.946,4830.2,4829.8,0.6077]
[1756053851790,0.41418,4830.0,4829.9,0.64748]
[1756053851990,20.36016,4830.2,4830.0,0.41417]
[1756053852186,20.36016,4830.2,4830.1,0.2333]
[1756053852388,1.03525,4830.9,4830.1,0.7791]
[1756053852586,1.03525,4830.9,4828.6,0.0207]
[1756053852587,0.41427,4829.0,4828.7,0.2333]
[1756053852785,19.958,4828.9,4828.8,0.2333]
[1756053852985,19.958,4828.9,4828.8,0.8426]
[1756053853185,19.958,4828.9,4828.8,0.2333]
[1756053853391,20.37227,4828.9,4828.8,0.2333]
[1756053853598,0.4143,4828.6,4828.4,0.2333]
[1756053853796,0.4143,4828.6,4828.5,0.2333]
[1756053854891,19.958,4828.9,4828.0,0.2333]
[1756053855091,0.41433,4828.2,4828.1,0.2333]
[1756053855792,0.41433,4828.2,4826.5,1.85395896]
[1756053855793,0.41438,4827.7,4827.5,0.2333]
[1756053856000,0.41438,4827.7,4826.9,0.3435]
[1756053856001,0.4144,4827.5,4827.1,0.2333]
[1756053856194,0.4144,4827.5,4827.2,0.2333]
[1756053856398,20.082,4827.7,4827.4,0.4499]
[1756053856595,20.082,4827.7,4826.9,0.2333]
[1756053856792,0.4144,4827.4,4826.6,0.2333]
[1756053856994,0.41442,4827.2,4826.6,0.64776]
[1756053857295,0.41442,4827.2,4826.3,0.3435]
[1756053857492,0.41441,4827.3,4826.8,0.64774]
[1756053857693,0.41441,4827.3,4826.9,0.41444]
[1756053857892,0.41441,4827.3,4827.0,0.2333]
[1756053858097,0.4144,4827.5,4827.1,0.63102]
[1756053858297,20.49637,4827.7,4827.1,0.63102]
[1756053858494,20.49637,4827.7,4827.3,0.2333]
[1756053858689,20.49638,4827.7,4827.3,0.4499]
[1756053858887,20.49638,4827.7,4827.3,0.631]
[1756053859092,20.49638,4827.7,4827.4,0.2333]
[1756053859895,20.49638,4827.7,4827.4,0.64769]
[1756053860199,20.49638,4827.7,4827.4,0.2333]
[1756053860402,20.49638,4827.7,4827.4,0.6477]
[1756053860700,20.082,4827.7,4827.5,0.41438]
[1756053860901,20.082,4827.7,4827.6,0.5768]
[1756053861093,20.082,4827.7,4827.6,0.7934]
[1756053861501,20.082,4827.7,4827.6,0.9512]
[1756053862101,20.082,4827.7,4827.6,1.3392]
[1756053865199,20.082,4827.7,4827.6,0.2333]
[1756053865599,0.41439,4827.5,4827.3,0.2333]
[1756053865801,20.49638,4827.7,4826.8,0.388]
[1756053866099,0.41439,4827.6,4827.3,0.2333]
[1756053866504,20.49638,4827.7,4827.4,0.64769]
[1756053866699,0.41438,4827.6,4827.4,0.64769]
[1756053867197,20.082,4827.7,4827.6,0.64768]
[1756053867397,20.082,4827.7,4827.6,0.86428]
[1756053867795,20.082,4827.7,4827.6,1.41008]
[1756053867994,20.082,4827.7,4827.6,1.75358]
[1756053868807,29.83,4828.0,4827.9,0.86426]
[1756053869002,49.794,4828.0,4827.9,0.86426]
[1756053869198,49.794,4828.0,4827.9,1.17516]
[1756053869502,49.794,4828.0,4827.9,1.41006]
[1756053870107,49.794,4828.0,4827.9,1.75356]
[1756053870511,0.41429,4828.7,4828.5,0.4143]
[1756053870700,0.41429,4828.7,4828.5,0.2333]
[1756053870701,19.948,4828.6,4828.5,0.2333]
[1756053871103,19.948,4828.6,4828.4,0.41431]
[1756053871498,19.948,4828.6,4828.5,0.2333]
[1756053871699,0.0009,4828.6,4828.5,1.022]
[1756053871998,19.9469,4828.6,4828.5,1.7535]
[1756053872707,19.9469,4828.6,4828.5,1.41]
[1756053874612,19.9469,4828.6,4828.5,1.7535]
[1756053874907,19.9469,4828.6,4828.5,0.8642]
[1756053875511,19.9469,4828.6,4828.5,1.022]
[1756053875811,19.9469,4828.6,4828.5,1.41]
[1756053876311,19.9469,4828.6,4828.5,1.7535]
[1756053876611,19.946,4828.6,4828.5,1.7535]
[1756053877310,29.841,4829.4,4829.3,0.41424]
[1756053877501,0.41426,4829.1,4828.6,0.2349]
[1756053877702,0.41425,4829.2,4828.6,0.2349]
[1756053877906,0.41425,4829.2,4828.7,0.41428]
[1756053878406,0.41426,4829.1,4828.8,0.2349]
[1756053878604,0.41426,4829.0,4828.8,0.2349]
[1756053878809,19.888,4828.9,4828.8,0.2349]
[1756053880915,0.41429,4828.7,4828.5,0.2349]
[1756053881312,0.41429,4828.7,4828.6,0.2349]
[1756053882316,20.30227,4828.9,4828.7,0.2349]
[1756053882514,20.30227,4828.9,4828.8,0.2349]
[1756053882917,19.888,4828.9,4828.8,0.9867]
[1756053883118,19.888,4828.9,4828.8,1.3255]
[1756053889231,19.888,4828.9,4828.8,0.9867]
[1756053889827,19.888,4828.9,4828.2,0.2349]
[1756053890030,0.41433,4828.2,4827.7,0.80667]
[1756053890330,0.41433,4828.2,4827.5,1.67459264]
[1756053890331,19.777,4828.1,4827.8,0.41436]
[1756053890522,19.777,4828.1,4828.0,0.2349]
[1756053891032,19.777,4828.1,4828.0,0.6096]
[1756053891227,19.777,4828.1,4828.0,0.7652]
[1756053891421,19.777,4828.1,4828.0,0.9867]
[1756053891830,19.777,4828.1,4828.0,1.3255]
[1756053894629,19.777,4828.1,4828.0,0.3923]
[1756053894826,19.777,4828.1,4828.0,0.2349]
[1756053895930,0.41436,4827.8,4827.6,1.69219264]
[1756053896233,0.41436,4827.8,4827.2,0.2173]
[1756053896234,0.41435,4828.0,4827.5,0.41438]
[1756053896434,0.41438,4827.7,4827.5,1.69219264]
[1756053896631,0.41436,4827.9,4827.5,1.69219264]
[1756053896935,0.41438,4827.7,4827.5,0.2349]
[1756053897329,19.777,4828.1,4827.5,0.64929]
[1756053897538,0.41437,4827.8,4827.5,0.2349]
[1756053897831,0.4144,4827.4,4827.2,0.2349]
[1756053898029,19.744,4827.3,4827.2,0.2349]
[1756053899031,19.744,4827.3,4827.2,0.4522]
[1756053899231,19.744,4827.3,4827.2,0.6096]
[1756053899433,19.744,4827.3,4827.2,0.2349]
[1756053899631,20.15841,4827.3,4826.9,0.2349]
[1756053899836,20.15841,4827.3,4827.1,0.3747]
[1756053900039,0.41445,4826.8,4826.6,1.45729264]
[1756053900232,0.41448,4826.5,4826.3,0.2349]
[1756053900428,19.733,4826.6,4826.2,0.4145]
[1756053900632,19.733,4826.5,4826.4,1.3255]
[1756053901931,19.733,4826.5,4826.4,0.2349]
[1756053902337,19.733,4826.5,4826.4,0.9867]
[1756053902541,19.733,4826.5,4826.4,1.3255]
[1756053902738,19.734,4827.3,4827.2,0.9867]
[1756053902936,19.734,4827.4,4827.3,1.40111]
[1756053903132,19.734,4828.1,4827.6,0.2349]
[1756053903332,19.734,4828.5,4828.2,0.2349]
[1756053903539,0.18344641,4829.3,4828.3,0.64922]
[1756053903737,0.41428,4828.8,4828.3,0.80662]
[1756053903938,0.4143,4828.6,4828.3,0.2173]
[1756053904137,0.4143,4828.6,4828.1,0.64924]
[1756053904446,0.41428,4828.8,4828.2,0.3923]
[1756053904640,19.734,4829.2,4828.4,0.2349]
[1756053904842,0.41428,4828.8,4828.5,0.4143]
[1756053905042,0.41428,4828.8,4828.6,0.2349]
[1756053905946,0.41432,4828.4,4828.2,0.2349]
[1756053906247,20.15032,4828.3,4828.1,0.63163]
[1756053906443,20.15032,4828.3,4828.1,0.2173]
[1756053906642,20.15032,4828.3,4828.2,0.2349]
[1756053908351,0.0009,4827.1,4827.0,2.21362264]
[1756053908646,0.0009,4827.1,4826.7,1.98589264]
[1756053908847,0.0009,4827.1,4827.0,1.322]
[1756053910253,0.41532,4827.1,4827.0,0.2315]
[1756053910954,0.41447,4826.6,4826.4,0.5286]
[1756053911247,0.0009,4826.5,4826.4,0.8547]
[1756053911645,0.0009,4826.5,4826.4,1.322]
[1756053911841,0.0009,4826.5,4826.4,0.9801]
[1756053912446,0.0009,4826.5,4826.4,1.322]
[1756053914251,0.41534,4826.9,4826.8,1.0905]
[1756053914451,0.41534,4826.9,4826.8,1.322]
[1756053914755,0.41444,4826.9,4826.8,1.322]
[1756053914953,0.41534,4826.9,4826.8,1.322]
[1756053915552,0.41444,4826.9,4826.8,1.322]
[1756053915951,0.41441,4827.2,4827.1,1.322]
[1756053916152,0.41531,4827.2,4827.1,1.322]
[1756053917347,0.42531,4827.2,4827.1,0.2315]
[1756053918854,0.42531,4827.2,4827.1,0.6106]
[1756053919056,0.42531,4827.2,4827.1,0.8306]
[1756053920659,0.42531,4827.2,4827.1,0.9801]
[1756053920858,0.42531,4827.2,4827.1,1.322]
[1756053922065,0.01,4827.2,4827.1,1.322]
[1756053923564,0.0109,4827.2,4827.1,0.9801]
[1756053924266,0.0109,4827.2,4827.1,1.322]
[1756053925059,0.01,4827.2,4827.1,1.322]
[1756053927764,19.734,4827.5,4827.4,1.7364]
[1756053928059,19.734,4828.1,4828.0,0.5128]
[1756053928260,19.734,4828.1,4828.0,1.322]
[1756053928862,0.41427,4828.9,4828.7,0.5128]
[1756053929069,0.41427,4828.9,4828.7,1.322]
[1756053929070,19.733,4828.8,4828.7,1.322]
[1756053929268,20.4297,4828.8,4828.7,1.322]
[1756053932363,19.733,4828.8,4828.7,1.322]
[1756053933671,19.733,4828.8,4828.7,5.322]
[1756053934364,19.733,4828.8,4828.7,5.3427]
[1756053934571,19.729,4829.3,4829.2,0.92704]
[1756053934771,19.729,4829.3,4829.2,1.73624]
[1756053936964,19.8721,4829.3,4829.2,1.73294]
[1756053937165,0.2358,4828.8,4828.5,0.2161]
[1756053937465,0.3923,4827.6,4827.5,0.8605]
[1756053937666,0.7416,4827.6,4827.5,1.0751]
[1756053938064,0.7416,4827.6,4827.5,1.2912]
[1756053938271,0.3923,4827.6,4827.5,1.2912]
[1756053938473,19.726,4827.8,4827.7,0.5189]
[1756053938673,19.726,4827.8,4827.7,1.2912]
[1756053939275,19.8813,4827.8,4827.7,1.2912]
[1756053939772,20.4665,4827.8,4827.7,1.2912]
[1756053939974,20.4676,4827.8,4827.7,1.2912]
[1756053940577,20.7034,4827.8,4827.7,0.9496]
[1756053941869,20.7034,4827.8,4827.7,0.7326]
[1756053942267,0.3923,4827.1,4827.0,0.78583]
[1756053942474,0.3923,4827.1,4827.0,1.70563]
[1756053943372,19.723,4827.3,4827.2,0.41441]
[1756053943572,19.723,4827.3,4827.2,0.93331]
[1756053943779,19.723,4827.3,4827.2,1.70561]
[1756053944177,19.8783,4827.3,4827.2,1.70561]
[1756053944679,0.3482,4827.4,4826.6,0.16672551]
[1756053944680,0.7416,4827.8,4827.7,0.9496]
[1756053944876,20.4636,4827.8,4827.7,0.9496]
[1756053945275,0.7416,4827.8,4827.7,1.2912]
[1756053948280,0.3923,4827.8,4827.7,1.2912]
[1756053948587,0.5852,4827.8,4827.7,1.2912]
[1756053948876,0.7405,4827.8,4827.7,1.2912]
[1756053949082,0.7416,4827.8,4827.7,1.2912]
[1756053949290,0.9774,4827.8,4827.7,1.2912]
[1756053949679,0.9774,4827.8,4827.7,0.7326]
[1756053950585,0.9774,4827.8,4827.7,0.9496]
[1756053951784,20.13536,4827.9,4827.4,0.3416]
[1756053951785,1.15599,4827.5,4827.4,0.9496]
[1756053951987,1.39179,4827.5,4827.4,0.7326]
[1756053953082,0.9774,4827.5,4827.4,0.7326]
[1756053953283,0.7416,4827.5,4827.4,1.2912]
[1756053954088,0.3482,4827.8,4826.9,0.7723]
[1756053954289,0.7416,4827.8,4827.7,0.5189]
[1756053954488,0.7416,4827.8,4827.7,1.2912]
[1756053956287,19.721,4827.9,4827.8,0.78576]
[1756053956487,19.721,4827.9,4827.8,1.70556]
[1756053956786,20.4615,4827.9,4827.8,1.70556]
[1756053957094,20.4626,4827.9,4827.8,1.70556]
[1756053957387,20.4626,4827.9,4827.8,1.2912]
[1756053961689,20.1133,4827.9,4827.8,1.2912]
[1756053961992,30.0778,4828.8,4828.7,1.2912]
[1756053962186,49.7888,4828.8,4828.7,1.2912]
[1756053962390,49.9012,4828.8,4828.7,1.2912]
[1756053964797,19.711,4828.8,4828.7,1.2912]
[1756053965499,20.2145,4828.8,4828.7,1.2912]
[1756053965699,20.4526,4828.8,4828.7,1.2912]
[1756053965896,20.1044,4828.8,4828.4,0.2161]
[1756053966094,20.1044,4828.8,4827.7,0.41437]
[1756053966095,0.9774,4828.0,4827.7,0.41437]
[1756053966396,0.9774,4827.6,4827.5,0.9496]
[1756053966595,20.6834,4827.6,4827.5,0.9496]
[1756053967397,20.6834,4827.6,4827.5,1.2817]
[1756053967994,20.4476,4827.6,4827.5,1.2817]
[1756053968196,20.0983,4827.6,4827.5,1.2817]
[1756053968993,20.4521,4827.6,4827.5,1.2817]
[1756053970196,20.4529,4827.6,4827.5,1.2817]
[1756053971395,20.6748,4827.6,4827.5,1.2817]
[1756053971905,21.08918,4827.6,4827.2,1.87170264]
[1756053972092,0.9609,4827.3,4827.1,1.45729264]
[1756053972299,20.0862,4827.2,4827.0,1.45729264]
[1756053972501,20.0862,4827.2,4826.7,1.69805]
[1756053972502,0.9609,4826.8,4826.7,1.69805]
[1756053972804,20.6609,4826.8,4826.7,1.36595]
[1756053973597,20.6609,4826.8,4826.7,0.3651]
[1756053974405,0.2361,4826.4,4826.3,1.62696739]
[1756053974608,0.2361,4826.4,4826.1,0.41451]
[1756053974609,20.0842,4826.4,4826.1,0.41451]
[1756053974902,0.9609,4826.1,4826.0,0.2226]
[1756053975103,0.9609,4826.0,4825.9,0.2179]
[1756053975300,20.6589,4826.0,4825.9,0.4405]
[1756053975797,20.6589,4826.0,4825.9,0.7337]
[1756053975997,20.6589,4826.0,4825.9,1.2836]
[1756053976194,20.437,4826.0,4825.9,1.2836]
[1756053976805,19.698,4826.0,4825.9,1.2836]
[1756053977009,20.4362,4826.4,4826.3,1.2836]
[1756053977907,20.437,4826.4,4826.3,1.2836]
[1756053978700,0.2219,4826.3,4826.0,0.4405]
[1756053978908,0.739,4826.1,4826.0,1.36601]
[1756053979207,0.739,4826.1,4826.0,1.69811]
[1756053980195,20.0824,4826.4,4826.3,1.69809]
[1756053980399,19.8471,4826.4,4826.3,1.69809]
[1756053980601,19.698,4826.4,4826.3,1.69809]
[1756053981102,20.6586,4826.8,4826.7,1.69806]
[1756053981309,20.6586,4826.8,4826.7,1.36596]
[1756053981807,20.6586,4826.8,4826.7,0.85496]
[1756053982000,0.3844,4826.4,4826.3,0.4405]
[1756053982204,0.9626,4826.4,4826.0,0.3321]
[1756053982402,0.9626,4826.2,4826.1,0.85501]
[1756053982601,0.3859,4825.9,4825.8,0.85503]
[1756053982801,0.9626,4825.9,4825.8,0.85503]
[1756053983002,0.9626,4825.9,4825.8,1.14823]
[1756053983403,0.9626,4825.9,4825.8,0.7337]
[1756053984712,0.9626,4825.9,4825.8,0.9515]
[1756053985013,0.3859,4825.7,4825.6,0.85505]
[1756053985201,0.9626,4825.7,4825.6,1.36605]
[1756053985411,0.7382,4825.7,4825.6,1.69815]
[1756053985706,20.4337,4826.2,4826.1,1.69811]
[1756053986303,20.0784,4826.2,4826.1,1.69811]
[1756053986502,20.0784,4826.2,4825.6,1.45729264]
[1756053986503,0.3844,4826.5,4826.4,0.92548]
[1756053986704,0.7407,4826.5,4826.4,1.69808]
[1756053986905,0.7397,4826.5,4826.4,1.69808]
[1756053987108,0.9626,4826.9,4826.4,0.3321]
[1756053987310,19.691,4827.0,4826.3,0.41449]
[1756053987311,0.3869,4826.4,4826.3,0.41449]
[1756053987611,0.9626,4826.4,4826.3,0.41449]
[1756053987812,0.9626,4826.4,4826.3,0.85499]
[1756053988001,0.9626,4826.4,4825.9,0.4405]
[1756053988313,0.9626,4825.9,4825.8,0.9515]
[1756053988803,0.7407,4825.9,4825.8,1.2836]
[1756053989201,19.691,4827.0,4825.5,0.16351091]
[1756053989202,0.3859,4826.5,4826.4,0.511]
[1756053989409,0.3869,4826.5,4826.4,1.2836]
[1756053989911,0.9626,4826.5,4826.4,1.2836]
[1756053990100,0.7397,4826.5,4826.4,1.2836]
[1756053990304,0.7407,4826.5,4826.4,1.2836]
[1756053990709,0.9626,4826.5,4826.4,1.2836]
[1756053990907,0.6088,4826.5,4825.9,0.2226]
[1756053991111,0.9626,4826.0,4825.9,1.36603]
[1756053991410,0.9626,4826.0,4825.9,1.69813]
[1756053991411,0.7407,4826.0,4825.9,1.69813]
[1756053991609,0.9626,4826.0,4825.9,0.9515]
[1756053992910,0.7407,4826.0,4825.9,1.2836]
[1756053993102,0.7397,4826.0,4825.9,1.2836]
[1756053994514,0.7382,4826.0,4825.9,1.2836]
[1756053998309,0.3649,4825.7,4825.6,0.4479]
[1756053998509,0.9232,4825.7,4825.6,0.4479]
[1756053998709,0.9232,4825.7,4825.6,0.2263]
[1756053999016,0.9232,4825.7,4825.6,0.4479]
[1756053999611,0.7745,4825.4,4825.3,1.68359264]
[1756053999810,0.41459,4825.2,4825.0,1.45729264]
[1756054000005,0.9232,4825.1,4825.0,0.4479]
[1756054001609,0.9232,4825.1,4824.7,2.21721264]
[1756054001916,0.9232,4824.9,4824.8,0.7405]
[1756054002114,0.9232,4824.9,4824.8,0.5908]
[1756054002312,0.6957,4824.8,4824.7,1.45729264]
[1756054002612,19.679,4825.7,4824.6,0.4479]
[1756054002613,0.6967,4824.7,4824.6,0.4479]
[1756054002915,0.6967,4824.7,4824.6,1.3109]
[1756054005613,0.9232,4824.7,4824.6,0.4479]
[1756054005917,0.6967,4824.2,4824.1,1.40625359]
[1756054006112,0.9232,4824.2,4824.1,1.40625359]
[1756054006313,0.9232,4824.2,4824.1,1.06095359]
[1756054006519,0.9232,4824.2,4824.1,1.40625359]
[1756054006911,0.6967,4824.2,4824.1,1.40625359]
[1756054007514,0.9232,4824.2,4824.1,1.40625359]
[1756054008019,0.9232,4824.2,4824.1,0.09535359]
[1756054009824,0.6967,4824.2,4824.1,1.40625359]
[1756054010515,0.9232,4824.2,4824.1,0.54325359]
[1756054010716,0.9232,4824.2,4824.1,0.09535359]
[1756054012015,0.9232,4824.2,4824.1,0.54325359]
[1756054012321,0.9232,4824.2,4824.1,1.06095359]
[1756054014022,0.6967,4824.2,4824.1,1.40625359]
[1756054014214,0.9232,4824.2,4824.1,1.40625359]
[1756054014621,0.9232,4824.2,4824.1,1.06095359]
[1756054015820,0.9232,4824.2,4824.1,0.09535359]
[1756054016918,0.9232,4824.2,4824.1,1.06095359]
[1756054017221,0.9232,4824.2,4824.1,1.40625359]
[1756054019015,0.9232,4824.2,4824.1,0.83585359]
[1756054019422,0.9232,4824.2,4824.1,1.40625359]
[1756054020021,0.6967,4824.2,4824.1,1.40625359]
[1756054020425,19.668,4824.4,4824.3,1.3109]
[1756054020616,20.3647,4824.4,4824.3,1.3109]
[1756054020817,20.5912,4824.4,4824.3,1.3109]
[1756054021318,0.9232,4824.2,4824.1,0.54325359]
[1756054021618,0.9232,4824.2,4824.1,0.09535359]
[1756054021924,0.6362,4823.2,4823.1,1.3109]
[1756054022520,0.63111399,4823.2,4823.1,1.3109]
[1756054023018,0.85761399,4823.2,4823.1,1.3109]
[1756054023218,0.85761399,4823.2,4823.1,0.9656]
[1756054023922,0.85761399,4823.2,4823.1,0.4479]